fUST/lending_fUST_20240705
["ID","MTS","AMOUNT","RATE_DAILY","PERIOD"]
[331246294,1720153891514,-500.0,0.00077808,120]
[331246295,1720153891524,-750.39,0.00077808,120]
[331246296,1720153891535,-783.28,0.00077808,120]
[331246297,1720153891555,-1251.1,0.00077808,120]
[331246298,1720153891566,-1887.65,0.00077808,120]
[331246299,1720153891576,-14703.07,0.00077808,120]
[331246300,1720153891586,-2156.14,0.00077808,120]
[331246301,1720153891596,-1053.52,0.00077808,120]
[331246302,1720153891605,-479.79477694,0.00077808,120]
[331246303,1720153891615,-4082.69390471,0.00077808,120]
[331246304,1720153891844,-1803.82580625,0.00026509,2]
[331246305,1720153891856,-10899.60491197,0.00026509,2]
[331246306,1720153893453,-6653.71869993,0.00026509,2]
[331246307,1720153893465,-854.51088185,0.00026509,2]
[331246308,1720153893477,-8826.84861747,0.00026509,2]
[331246309,1720153893489,-320.54691698,0.00026509,2]
[331246310,1720153893502,-640.94416555,0.00026509,2]
[331246311,1720153893511,-435.68161503,0.00026509,7]
[331246312,1720153893525,-1161.76215399,0.00026509,7]
[331246313,1720153893534,-4711.13030053,0.00026509,2]
[331246314,1720153893548,-2129.2320514,0.00026509,2]
[331246315,1720153893558,-3078.85157566,0.00026509,2]
[331246316,1720153893567,-2833.16446756,0.00027999,2]
[331246317,1720153893577,-1158.30679459,0.00029861,2]
[331246318,1720153893587,-1260.01242543,0.00033597,4]
[331246319,1720153893596,-167.54023084,0.00034472,4]
[331246320,1720153893787,-347.635603,0.00025194,7]
[331246321,1720153893800,-11727.60856736,0.00025501,2]
[331246322,1720153893811,-8535.0,0.00025501,2]
[331246330,1720154167230,3015.76060786,0.00029456,120]
[331246334,1720154243439,10387.95193604,0.00029456,30]
[331246344,1720154397301,-3273.96709454,0.000198,15]
[331246351,1720154455484,-300.0,0.00014997,2]
[331246352,1720154455507,-300.0,0.00014997,2]
[331246353,1720154455529,-9615.23092531,0.00014998,2]
[331246354,1720154455551,-684.76907469,0.00014998,2]
[331246371,1720154673062,150.5,0.00016245,62]
[331246374,1720154673580,150.5,0.00016235,62]
[331246377,1720154674491,296.0,0.00016225,62]
[331246385,1720154702976,5577.97869727,0.00013999,2]
[331246390,1720154739190,-1217.82256426,0.00013999,2]
[331246398,1720154792010,150.95,0.00016245,62]
[331246404,1720154836395,-1187.40205179,0.00013999,2]
[331246405,1720154844150,-166.68252546,0.00013999,2]
[331246406,1720154845178,-2825.34742039,0.00013999,2]
[331246409,1720154946329,-13914.76674083,0.00013999,2]
[331246410,1720154946653,-183.19086141,0.00013999,2]
[331246411,1720154946807,-3000.0,0.00014274,2]
[331246416,1720154982652,149.84806198,0.00013999,2]
[331246417,1720154982677,100.15193802,0.00013999,2]
[331246418,1720154985589,99.96496618,9.999e-05,2]
[331246419,1720154985614,154.80649189,9.999e-05,2]
[331246420,1720154985637,181.52153288,9.999e-05,2]
[331246477,1720155036240,-215.42301002,0.00014745,2]
[331246479,1720155036251,-205.8822857,0.000149,2]
[331246480,1720155036261,-5392.64058461,0.00014998,2]
[331246482,1720155036271,-6981.98564229,0.00014998,2]
[331246484,1720155036280,-9615.23092531,0.00014998,2]
[331246486,1720155036291,-500.0,0.00014998,2]
[331246488,1720155036302,-645.60356325,0.00014998,2]
[331246490,1720155036312,-8146.47854818,0.00014998,2]
[331246586,1720155039343,-2429.76814067,0.00014998,2]
[331246587,1720155039354,-1080.23753275,0.00014999,2]
[331246588,1720155039364,-4711.13030053,0.00014999,2]
[331246590,1720155039374,-2118.54298063,0.00014999,2]
[331246593,1720155039383,-3138.06906429,0.00014999,2]
[331246595,1720155039393,-1463.4054225,0.00014999,2]
[331246598,1720155039403,-1915.88692297,0.00014999,2]
[331246600,1720155039412,-1434.5963251,0.00014999,2]
[331246601,1720155039422,-1500.0,0.00014999,2]
[331246602,1720155039431,-3078.85157566,0.00014999,2]
[331246603,1720155039441,-1634.75488436,0.00014999,2]
[331246604,1720155039451,-397.62940615,0.00014999,2]
[331246605,1720155039460,-17273.34004538,0.00015,2]
[331246606,1720155039470,-2364.40066571,0.00015,2]
[331246607,1720155039480,-1104.74204561,0.00015,2]
[331246608,1720155039489,-937.8,0.00015,2]
[331246609,1720155039499,-490.93235365,0.00015995,2]
[331246610,1720155039508,-26241.84515172,0.0001609,2]
[331246611,1720155039521,-5126.10949798,0.0001609,2]
[331246612,1720155039531,-15762.69870353,0.000161,2]
[331246613,1720155039541,-943.45114498,0.00016155,2]
[331246614,1720155039551,-31367.9546497,0.00016235,2]
[331246615,1720155039561,-31367.9546497,0.00016245,2]
[331246616,1720155039571,-31144.50621894,0.00016245,2]
[331246617,1720155039584,-16282.13772,0.00016245,2]
[331246618,1720155039599,-19530.84157778,0.00016245,2]
[331246619,1720155039609,-30249.67492222,0.00016245,2]
[331246620,1720155039623,-13251.28483,0.00016245,2]
[331246621,1720155039635,-27835.8453311,0.00016245,2]
[331246622,1720155039647,-808.92881548,0.00016245,2]
[331246623,1720155039659,-21958.1300502,0.00016245,2]
[331246624,1720155039669,-34932.27430829,0.00016255,2]
[331246625,1720155039679,-17247.80566422,0.00016255,2]
[331246626,1720155039690,-23281.7105076,0.00016255,2]
[331246627,1720155039700,-30000.0,0.00016255,2]
[331246628,1720155039711,-11030.4600577,0.00016255,2]
[331246629,1720155039721,-154.69833824,0.00016255,2]
[331246630,1720155039731,-166.666666,0.00016438,2]
[331246631,1720155039741,-166.666666,0.00016823,2]
[331246632,1720155039751,-166.666666,0.00017208,2]
[331246633,1720155039761,-166.666666,0.00017592,2]
[331246634,1720155039771,-166.666666,0.00017977,2]
[331246635,1720155039780,-166.666666,0.00018362,2]
[331246636,1720155039790,-193.95387146,0.000186,2]
[331246637,1720155039799,-193.95387146,0.000186,2]
[331246638,1720155039808,-190.9326654,0.00018798,2]
[331246639,1720155039818,-276.42306753,0.00018798,2]
[331246640,1720155039828,-812.31944159,0.00019039,3]
[331246641,1720155039837,-378.37321801,0.00019039,2]
[331246642,1720155039851,-250.0,0.00019041,2]
[331246643,1720155039860,-31367.9546497,0.00019049,2]
[331246644,1720155039869,-159.637787,0.00019178,2]
[331246645,1720155039879,-154.83742071,0.000198,2]
[331246646,1720155039888,-1724.35538883,0.0002,2]
[331246647,1720155039898,-562.70462745,0.0002,2]
[331246648,1720155039907,-435.0,0.0002,2]
[331246649,1720155039917,-725.167012,0.00021096,2]
[331246650,1720155039927,-31367.9546497,0.00021907,3]
[331246651,1720155039937,-1116.9418809,0.00021917,2]
[331246652,1720155039947,-943.45114498,0.00022091,2]
[331246653,1720155039957,-879.23230837,0.0002237,2]
[331246654,1720155039967,-306.030258,0.000225,10]
[331246655,1720155039976,-3968.06642419,0.00022941,2]
[331246656,1720155039985,-3130.40828598,0.00023966,4]
[331246657,1720155039995,-874.4460469,0.00024273,2]
[331246658,1720155040005,-380.0,0.00024658,2]
[331246659,1720155040014,-200.0,0.00024658,15]
[331246660,1720155040024,-500.0,0.00025,30]
[331246661,1720155040033,-500.0,0.00025,30]
[331246662,1720155040043,-537.0,0.00025,30]
[331246663,1720155040053,-12256.62261502,0.00025,60]
[331246664,1720155040062,-154.76012181,0.00025086,2]
[331246665,1720155040072,-632.72230235,0.00025487,2]
[331246666,1720155040082,-52100.07365113,0.00025501,2]
[331246667,1720155040091,-57214.94712358,0.00025869,2]
[331246668,1720155040104,-200.69263147,0.00025902,2]
[331246669,1720155040114,-4462.98107428,0.00026,2]
[331246670,1720155040123,-4591.6811785,0.00026202,2]
[331246671,1720155040133,-158.20251691,0.000264,2]
[331246672,1720155040143,-3000.0,0.000265,2]
[331246673,1720155040153,-3000.0,0.0002651,2]
[331246674,1720155040162,-3000.0,0.0002652,2]
[331246675,1720155040176,-3000.0,0.0002653,2]
[331246676,1720155040187,-3000.0,0.0002654,2]
[331246677,1720155040197,-3000.0,0.0002655,2]
[331246678,1720155040207,-3000.0,0.0002656,2]
[331246679,1720155040219,-3000.0,0.0002657,2]
[331246680,1720155040229,-3000.0,0.0002658,2]
[331246681,1720155040239,-3000.0,0.0002659,2]
[331246682,1720155040250,-3000.0,0.000266,2]
[331246685,1720155040262,-3000.0,0.0002661,2]
[331246687,1720155040272,-3000.0,0.0002662,2]
[331246689,1720155040282,-3000.0,0.0002663,2]
[331246690,1720155040292,-3000.0,0.0002664,2]
[331246691,1720155040302,-3000.0,0.0002665,2]
[331246692,1720155040312,-3305.948312,0.0002666,2]
[331246693,1720155040322,-725.167012,0.00027195,2]
[331246694,1720155040332,-293.33394095,0.00027399,2]
[331246695,1720155040341,-293.33394095,0.00027399,2]
[331246696,1720155040353,-175.1548047,0.000274,2]
[331246697,1720155040363,-268.30367969,0.00028,2]
[331246698,1720155040373,-12193.72029826,0.00028,30]
[331246699,1720155040383,-943.45114498,0.00028028,2]
[331246700,1720155040393,-225.53942994,0.00029456,2]
[331246701,1720155040402,-189.04078712,0.00029456,2]
[331246702,1720155040412,-763.20815407,0.00029456,2]
[331246703,1720155040421,-427.95620224,0.00029456,2]
[331246704,1720155040431,-4172.94461587,0.00029456,2]
[331246705,1720155040441,-24379.56777085,0.00029821,2]
[331246706,1720155040451,-587.92208219,0.00029821,2]
[331246707,1720155040461,-808.08946619,0.00029869,2]
[331246708,1720155040470,-154.74467129,0.0003,4]
[331246709,1720155040480,-642.76758109,0.0003,4]
[331246710,1720155040490,-351.32038796,0.0003,30]
[331246711,1720155040504,-471.27760912,0.0003,4]
[331246712,1720155040515,-155.40443651,0.0003057,7]
[331246713,1720155040525,-284.22582068,0.0003091,3]
[331246714,1720155040536,-154.74467129,0.0003091,2]
[331246715,1720155040546,-1083.96769639,0.00031,120]
[331246716,1720155040555,-44407.43628666,0.000325,60]
[331246717,1720155040565,-302.44790838,0.0003295,4]
[331246718,1720155040574,-725.167012,0.00033295,2]
[331246719,1720155040584,-943.45114498,0.00033964,2]
[331246720,1720155040593,-155.04482031,0.00034229,4]
[331246721,1720155040606,-155.04482031,0.00034229,4]
[331246722,1720155040616,-215.10199221,0.00034317,4]
[331246723,1720155040626,-2146.27761673,0.00034634,14]
[331246724,1720155040636,-154.69833824,0.00034642,4]
[331246725,1720155040651,-156.39013558,0.00034944,7]
[331246726,1720155040660,-1313.31625762,0.00035,4]
[331246727,1720155040670,-664.59310376,0.00035,30]
[331246728,1720155040680,-388.85905728,0.00035,4]
[331246730,1720155040690,-500.0,0.00035704,2]
[331246731,1720155040700,-531.43672027,0.00036,30]
[331246732,1720155040709,-156.25095608,0.00036857,7]
[331246733,1720155040719,-161.42659871,0.00036924,7]
[331246734,1720155040729,-154.83299546,0.00037,4]
[331246735,1720155040739,-23892.12652259,0.00038,30]
[331246736,1720155040749,-159.637787,0.00038748,2]
[331246737,1720155040759,-156.39013558,0.00039026,7]
[331246738,1720155040769,-154.74467129,0.000392,10]
[331246739,1720155040780,-725.167012,0.00039394,2]
[331246740,1720155040790,-943.45114498,0.000399,2]
[331246741,1720155040800,-3990.00210664,0.0003999,4]
[331246742,1720155040809,-25380.23808094,0.0004,120]
[331246743,1720155040819,-30409.38165568,0.0004,30]
[331246744,1720155040830,-1902.06329434,0.0004,120]
[331246745,1720155040839,-871.92,0.0004,120]
[331246746,1720155040851,-151.0,0.0004,120]
[331246747,1720155040861,-151.0,0.0004,120]
[331246748,1720155040870,-8823.13575589,0.00041,30]
[331246749,1720155040880,-1306.18,0.00041095,120]
[331246750,1720155040889,-151.0,0.00041315,120]
[331246751,1720155040899,-1306.18,0.00041369,120]
[331246752,1720155040909,-1306.18,0.00041643,120]
[331246753,1720155040918,-151.0,0.00041863,120]
[331246754,1720155040928,-1306.18,0.00041917,120]
[331246755,1720155040937,-1306.18,0.00042191,120]
[331246756,1720155040948,-1306.18,0.00042465,120]
[331246757,1720155040957,-151.0,0.0004263,120]
[331246758,1720155040967,-1306.18,0.00042739,120]
[331246759,1720155040977,-3042.95929617,0.00043,30]
[331246760,1720155040987,-1306.18,0.00043013,120]
[331246761,1720155040997,-156.39013558,0.00043232,30]
[331246762,1720155041006,-1306.18,0.00043287,120]
[331246763,1720155041016,-1306.18,0.00043561,120]
[331246764,1720155041025,-151.0,0.00043726,120]
[331246765,1720155041035,-3809.2136136,0.000438,60]
[331246766,1720155041045,-1306.18,0.00043835,120]
[331246767,1720155041054,-151.0,0.00043945,120]
[331246768,1720155041064,-1306.18,0.00044109,120]
[331246769,1720155041073,-1306.18,0.00044383,120]
[331246770,1720155041083,-1306.18,0.00044657,120]
[331246771,1720155041093,-156.25095608,0.00044923,30]
[331246772,1720155041105,-1306.18,0.00044931,120]
[331246773,1720155041116,-59182.13022081,0.00045,120]
[331246774,1720155041126,-1306.18,0.00045205,120]
[331246775,1720155041136,-151.0,0.0004526,120]
[331246776,1720155041146,-150.0,0.00045336,2]
[331246777,1720155041155,-1306.18,0.00045479,120]
[331246778,1720155041165,-725.167012,0.00045494,2]
[331246779,1720155041179,-151.0,0.00045589,120]
[331246780,1720155041188,-1306.18,0.00045753,120]
[331246781,1720155041198,-156.3901356,0.00045848,30]
[331246782,1720155041207,-263069.87633539,0.00046,60]
[331246783,1720155041218,-1306.18,0.00046027,120]
[331246784,1720155041228,-1306.18,0.00046301,120]
[331246785,1720155041238,-1306.18,0.00046575,120]
[331246786,1720155041251,-151.0,0.00046575,120]
[331246787,1720155041261,-1306.18,0.00046849,120]
[331246788,1720155041270,-1005.70031008,0.00047,7]
[331246790,1720155041280,-1306.18,0.00047123,120]
[331246791,1720155041290,-1306.29,0.00047397,120]
[331246792,1720155041299,-151.0,0.00047452,120]
[331246793,1720155041309,-151.0,0.0004789,120]
[331246795,1720155041319,-499.999999,0.00048,120]
[331246797,1720155041328,-14750.92089144,0.00048398,8]
[331246798,1720155041338,-5140.90584341,0.000488,90]
[331246799,1720155041348,-20363.18636134,0.000488,90]
[331246800,1720155041357,-155.0,0.0004908,58]
[331246801,1720155041367,-151.0,0.00049205,120]
[331246802,1720155041376,-156.25095608,0.00049261,30]
[331246803,1720155041387,-2500.0,0.00049284,120]
[331246804,1720155041397,-1857.22695229,0.00049284,120]
[331246805,1720155041406,-153.0,0.00049288,120]
[331246806,1720155041416,-153.0,0.00049288,120]
[331246807,1720155041425,-153.0,0.00049288,120]
[331246808,1720155041436,-153.0,0.00049288,120]
[331246809,1720155041445,-153.0,0.00049288,120]
[331246810,1720155041455,-153.0,0.00049288,120]
[331246811,1720155041465,-153.0,0.00049288,120]
[331246812,1720155041475,-153.0,0.00049288,120]
[331246813,1720155041484,-153.0,0.00049288,120]
[331246814,1720155041494,-153.0,0.00049288,120]
[331246815,1720155041504,-153.0,0.00049288,120]
[331246816,1720155041514,-153.0,0.00049288,120]
[331246817,1720155041524,-153.0,0.00049288,120]
[331246818,1720155041535,-153.0,0.00049288,120]
[331246819,1720155041545,-153.0,0.00049288,120]
[331246820,1720155041554,-153.0,0.00049288,120]
[331246821,1720155041564,-153.0,0.00049288,120]
[331246822,1720155041573,-153.0,0.00049288,120]
[331246823,1720155041583,-153.0,0.00049288,120]
[331246824,1720155041592,-153.0,0.00049288,120]
[331246825,1720155041603,-153.0,0.00049288,120]
[331246826,1720155041614,-153.0,0.00049288,120]
[331246827,1720155041623,-153.0,0.00049288,120]
[331246828,1720155041633,-153.0,0.00049288,120]
[331246829,1720155041642,-153.0,0.00049288,120]
[331246830,1720155041652,-153.0,0.00049288,120]
[331246831,1720155041661,-153.0,0.00049288,120]
[331246832,1720155041671,-153.0,0.00049288,120]
[331246833,1720155041680,-153.0,0.00049288,120]
[331246834,1720155041690,-153.0,0.00049288,120]
[331246835,1720155041699,-153.0,0.00049288,120]
[331246836,1720155041709,-153.0,0.00049288,120]
[331246837,1720155041718,-153.0,0.00049288,120]
[331246838,1720155041729,-153.0,0.00049288,120]
[331246839,1720155041738,-153.0,0.00049288,120]
[331246840,1720155041748,-153.0,0.00049288,120]
[331246841,1720155041758,-153.0,0.00049288,120]
[331246842,1720155041767,-153.0,0.00049288,120]
[331246843,1720155041779,-153.0,0.00049288,120]
[331246844,1720155041788,-153.0,0.00049288,120]
[331246845,1720155041797,-153.0,0.00049288,120]
[331246846,1720155041807,-153.0,0.00049288,120]
[331246847,1720155041817,-153.0,0.00049288,120]
[331246848,1720155041826,-153.0,0.00049288,120]
[331246849,1720155041835,-153.0,0.00049288,120]
[331246850,1720155041844,-153.0,0.00049288,120]
[331246851,1720155041856,-153.0,0.00049288,120]
[331246852,1720155041866,-153.0,0.00049288,120]
[331246853,1720155041876,-153.0,0.00049288,120]
[331246854,1720155041885,-153.0,0.00049288,120]
[331246855,1720155041895,-153.0,0.00049288,120]
[331246856,1720155041904,-153.0,0.00049288,120]
[331246857,1720155041913,-153.0,0.00049288,120]
[331246858,1720155041922,-500.0,0.00049315,120]
[331246859,1720155041931,-500.0,0.00049315,120]
[331246860,1720155041940,-502.1966832,0.00049315,120]
[331246861,1720155041950,-500.0,0.00049315,120]
[331246862,1720155041960,-500.0,0.00049315,120]
[331246863,1720155041969,-500.0,0.00049315,120]
[331246864,1720155041979,-546.32926241,0.00049315,120]
[331246865,1720155041989,-571.33075217,0.00049315,120]
[331246866,1720155041998,-500.0,0.00049315,120]
[331246867,1720155042008,-500.0,0.00049315,120]
[331246868,1720155042017,-500.0,0.00049315,120]
[331246869,1720155042026,-500.0,0.00049315,120]
[331246870,1720155042035,-500.0,0.00049315,120]
[331246871,1720155042044,-500.0,0.00049315,120]
[331246872,1720155042054,-500.0,0.00049315,120]
[331246873,1720155042064,-500.0,0.00049315,120]
[331246874,1720155042073,-500.0,0.00049315,120]
[331246875,1720155042082,-500.0,0.00049315,120]
[331246876,1720155042094,-500.0,0.00049315,120]
[331246877,1720155042107,-500.0,0.00049315,120]
[331246878,1720155042117,-500.0,0.00049315,120]
[331246879,1720155042127,-500.0,0.00049315,120]
[331246880,1720155042137,-500.0,0.00049315,120]
[331246881,1720155042146,-672.85,0.00049315,120]
[331246882,1720155042155,-500.0,0.00049315,120]
[331246883,1720155042164,-500.0,0.00049315,120]
[331246884,1720155042177,-500.0,0.00049315,120]
[331246885,1720155042187,-500.97538624,0.00049315,120]
[331246886,1720155042196,-500.0,0.00049315,120]
[331246887,1720155042206,-500.0,0.00049315,120]
[331246888,1720155042217,-500.0,0.00049315,120]
[331246889,1720155042227,-500.0,0.00049315,120]
[331246890,1720155042237,-500.0,0.00049315,120]
[331246891,1720155042247,-500.0,0.00049315,120]
[331246892,1720155042257,-500.0,0.00049315,120]
[331246893,1720155042268,-500.0,0.00049315,120]
[331246894,1720155042277,-500.0,0.00049315,120]
[331246895,1720155042287,-500.0,0.00049315,120]
[331246896,1720155042296,-500.0,0.00049315,120]
[331246897,1720155042306,-500.0,0.00049315,120]
[331246898,1720155042315,-500.0,0.00049315,120]
[331246899,1720155042325,-197.46654443,0.00049315,120]
[331246900,1720155042334,-500.0,0.00049315,120]
[331246901,1720155042344,-511.28080265,0.00049315,120]
[331246902,1720155042357,-500.0,0.00049315,120]
[331246903,1720155042368,-500.0,0.00049315,120]
[331246904,1720155042378,-500.0,0.00049315,120]
[331246905,1720155042387,-500.0,0.00049315,120]
[331246906,1720155042397,-500.0,0.00049315,120]
[331246907,1720155042406,-500.0,0.00049315,120]
[331246908,1720155042415,-500.0,0.00049315,120]
[331246909,1720155042425,-500.0,0.00049315,120]
[331246910,1720155042434,-500.0,0.00049315,120]
[331246911,1720155042444,-500.64569599,0.00049315,120]
[331246912,1720155042453,-500.0,0.00049315,120]
[331246913,1720155042462,-500.0,0.00049315,120]
[331246914,1720155042471,-444.56530776,0.00049315,120]
[331246915,1720155042480,-618.39399874,0.00049315,120]
[331246916,1720155042490,-500.0,0.00049315,120]
[331246917,1720155042499,-500.0,0.00049315,120]
[331246918,1720155042508,-500.0,0.00049315,120]
[331246919,1720155042517,-500.0,0.00049315,120]
[331246920,1720155042527,-500.0,0.00049315,120]
[331246921,1720155042536,-204.05004312,0.00049315,30]
[331246922,1720155042545,-500.0,0.00049315,120]
[331246923,1720155042555,-500.0,0.00049315,120]
[331246924,1720155042564,-527.62980174,0.00049315,120]
[331246925,1720155042573,-500.0,0.00049315,120]
[331246926,1720155042582,-500.0,0.00049315,120]
[331246927,1720155042591,-500.0,0.00049315,120]
[331246928,1720155042604,-500.0,0.00049315,120]
[331246929,1720155042617,-500.0,0.00049315,120]
[331246930,1720155042625,-500.0,0.00049315,120]
[331246931,1720155042635,-500.0,0.00049315,120]
[331246932,1720155042644,-501.89009878,0.00049315,120]
[331246933,1720155042654,-500.0,0.00049315,120]
[331246934,1720155042665,-500.0,0.00049315,120]
[331246935,1720155042674,-500.0,0.00049315,120]
[331246936,1720155042684,-500.0,0.00049315,120]
[331246937,1720155042694,-442.7511851,0.00049315,120]
[331246938,1720155042703,-500.0,0.00049315,120]
[331246939,1720155042713,-501.81448415,0.00049315,120]
[331246940,1720155042723,-500.0,0.00049315,120]
[331246941,1720155042732,-500.0,0.00049315,120]
[331246942,1720155042741,-500.0,0.00049315,120]
[331246943,1720155042750,-500.0,0.00049315,120]
[331246944,1720155042759,-500.0,0.00049315,120]
[331246945,1720155042768,-500.0,0.00049315,120]
[331246946,1720155042777,-500.0,0.00049315,120]
[331246947,1720155042786,-500.0,0.00049315,120]
[331246948,1720155042795,-414.27984714,0.00049315,120]
[331246949,1720155042804,-500.0,0.00049315,120]
[331246950,1720155042813,-500.0,0.00049315,120]
[331246951,1720155042823,-326.45110222,0.00049315,120]
[331246952,1720155042832,-382.64619384,0.00049315,120]
[331246954,1720155042841,-500.0,0.00049315,120]
[331246956,1720155042853,-500.0,0.00049315,30]
[331246958,1720155042862,-500.0,0.00049315,120]
[331246960,1720155042871,-500.0,0.00049315,120]
[331246961,1720155042880,-500.0,0.00049315,120]
[331246963,1720155042889,-1107.9,0.00049315,120]
[331246965,1720155042899,-500.0,0.00049315,120]
[331246967,1720155042910,-500.84218395,0.00049315,120]
[331246969,1720155042919,-500.0,0.00049315,120]
[331246971,1720155042928,-500.0,0.00049315,120]
[331246973,1720155042937,-500.0,0.00049315,120]
[331246974,1720155042948,-500.0,0.00049315,120]
[331246975,1720155042958,-500.22793421,0.00049315,120]
[331246976,1720155042968,-500.0,0.00049315,120]
[331246977,1720155042977,-500.0,0.00049315,120]
[331246978,1720155042986,-500.0,0.00049315,120]
[331246979,1720155042995,-500.0,0.00049315,120]
[331246980,1720155043004,-356.04202684,0.00049315,120]
[331246981,1720155043014,-500.0,0.00049315,120]
[331246982,1720155043023,-524.47846599,0.00049315,120]
[331246983,1720155043032,-500.0,0.00049315,120]
[331246984,1720155043041,-500.0,0.00049315,120]
[331246985,1720155043050,-500.0,0.00049315,120]
[331246986,1720155043059,-500.0,0.00049315,120]
[331246987,1720155043069,-500.0,0.00049315,120]
[331246988,1720155043078,-500.0,0.00049315,120]
[331247001,1720155043220,-500.0,0.00049315,120]
[331247002,1720155043230,-500.0,0.00049315,120]
[331247003,1720155043239,-1390.21,0.00049315,120]
[331247004,1720155043252,-500.0,0.00049315,120]
[331247005,1720155043262,-500.0,0.00049315,120]
[331247006,1720155043272,-615.87011713,0.00049315,120]
[331247007,1720155043281,-500.0,0.00049315,120]
[331247008,1720155043290,-500.0,0.00049315,120]
[331247009,1720155043300,-500.0,0.00049315,120]
[331247010,1720155043309,-500.56557163,0.00049315,120]
[331247011,1720155043319,-500.0,0.00049315,120]
[331247012,1720155043329,-500.0,0.00049315,120]
[331247013,1720155043339,-500.0,0.00049315,120]
[331247018,1720155043350,-500.0,0.00049315,120]
[331247021,1720155043359,-500.0,0.00049315,120]
[331247025,1720155043369,-500.0,0.00049315,120]
[331247027,1720155043379,-653.97,0.00049315,120]
[331247030,1720155043388,-500.0,0.00049315,120]
[331247032,1720155043397,-500.0,0.00049315,120]
[331247035,1720155043406,-500.0,0.00049315,120]
[331247036,1720155043416,-715.78,0.00049315,120]
[331247037,1720155043425,-500.0,0.00049315,120]
[331247038,1720155043435,-500.0,0.00049315,30]
[331247039,1720155043444,-500.0,0.00049315,120]
[331247040,1720155043453,-500.0,0.00049315,120]
[331247041,1720155043462,-500.0,0.00049315,120]
[331247042,1720155043472,-500.0,0.00049315,120]
[331247043,1720155043481,-500.0,0.00049315,120]
[331247044,1720155043491,-500.0,0.00049315,120]
[331247045,1720155043500,-500.0,0.00049315,120]
[331247046,1720155043509,-500.0,0.00049315,120]
[331247047,1720155043518,-500.0,0.00049315,120]
[331247048,1720155043527,-500.0,0.00049315,120]
[331247049,1720155043537,-500.0,0.00049315,120]
[331247050,1720155043546,-500.0,0.00049315,120]
[331247051,1720155043556,-501.67589518,0.00049315,120]
[331247052,1720155043565,-500.0,0.00049315,120]
[331247053,1720155043575,-501.42881769,0.00049315,120]
[331247054,1720155043584,-500.0,0.00049315,120]
[331247055,1720155043594,-500.0,0.00049315,120]
[331247057,1720155043607,-500.0,0.00049315,120]
[331247060,1720155043617,-500.0,0.00049315,120]
[331247062,1720155043627,-500.0,0.00049315,120]
[331247065,1720155043636,-500.0,0.00049315,10]
[331247069,1720155043647,-500.0,0.00049315,120]
[331247072,1720155043658,-819.96,0.00049315,120]
[331247076,1720155043667,-500.0,0.00049315,120]
[331247080,1720155043678,-500.0,0.00049315,120]
[331247083,1720155043687,-500.0,0.00049315,120]
[331247087,1720155043696,-167.54516086,0.00049315,120]
[331247090,1720155043706,-500.0,0.00049315,120]
[331247094,1720155043715,-500.0,0.00049315,120]
[331247096,1720155043724,-503.54772577,0.00049315,120]
[331247099,1720155043734,-500.0,0.00049315,120]
[331247102,1720155043743,-500.0,0.00049315,120]
[331247105,1720155043752,-500.0,0.00049315,120]
[331247108,1720155043762,-500.0,0.00049315,120]
[331247111,1720155043772,-970.15,0.00049315,120]
[331247114,1720155043781,-500.0,0.00049315,120]
[331247117,1720155043791,-500.0,0.00049315,120]
[331247120,1720155043800,-500.0,0.00049315,120]